[Event "FIDE World Senior-50 CC 2023"]
[Site "Terrasini"]
[Date "2023.10.25"]
[Round "1.1"]
[White "Steadman, Michael V R"]
[Black "Adams, Michael"]
[Result "0-1"]
[ECO "C22"]
[WhiteElo "2114"]
[BlackElo "2670"]
[Annotator "TA"]
[PlyCount "48"]
[EventDate "2023.10.22"]
[EventType "swiss"]
[EventCountry "ITA"]
[SourceTitle "playchess.com"]
[Source "ChessBase"]
[SourceQuality "1"]
[TimeControl "40/5400+30:1800+30"]

{[%evp 9,48,-35,8,-42,-18,-40,-28,-27,-42,-131,-61,-64,-73,-75,-75,-71,-54,-93,-84,-103,-56,-52,-31,-60,-55,-89,-59,-62,-33,-25,-13,-48,-59,-156,-153,-235,-203,-547,-501,-700,-687]} 1. e4 {[%emt 0:00:05] ChessBase II} e5 {[%emt 0:00:10]} 2. d4 {[%emt 0:00:09]} exd4 {[%emt 0:00:11]} 3. Qxd4 {[%emt 0:00:03]} Nc6 {[%emt 0:00:17]} 4. Qd3 {[%emt 0:00:13]} Nf6 {[%emt 0:04:29]} 5. Nc3 {[%emt 0:00:14]} Be7 {[%emt 0:04:52][%cal Od7d5]} 6. f4 {[%emt 0:04:42] C22: Centre Game.} (6. Bf4 $11) 6... O-O {[%emt 0:06:46] ...Nb4 would be deadly.} (6... d5 $5 {[%cal Rc6b4]} 7. e5 (7. exd5 $2 Nb4 $17) (7. Nxd5 Nxd5 8. Qxd5 Qxd5 $15) 7... Nb4 $15) 7. Nf3 {[%emt 0:06:57] [#]} d5 $1 {[%emt 0:03:06] Strongly threatening ...dxe4.} 8. e5 {[%emt 0:12:59] Black has an edge.} ({Much weaker is} 8. Nxd5 Nxd5 9. Qxd5 (9. exd5 Nb4 $17) 9... Qxd5 10. exd5 Nb4 $17) (8. exd5 $2 Nb4 9. Qd1 (9. Qe2 $2 Bf5 $19) 9... Bc5 $19) 8... Nb4 {[%emt 0:00:20]} 9. Qe2 {[%emt 0:08:35] [#]} ({White should try} 9. Qd1 $1 $15 Ne4 10. a3 Nxc3 11. bxc3) 9... Ne4 $1 {[%emt 0:10:16][%mdl 512]} 10. a3 $15 {[%emt 0:04:05]} Nxc3 {[%emt 0:00:07]} 11. bxc3 {[%emt 0:00:02]} Nc6 {[%emt 0:00:07]} 12. Bb2 {[%emt 0:05:20] [#]} f6 $146 {[%emt 0:06:45]} ({Predecessor:} 12... Na5 13. Qf2 c6 14. Bd3 Qb6 15. Qxb6 axb6 16. f5 Nc4 17. Bxc4 dxc4 18. g4 g6 {0-1 Palacios de la Prida,E-Pachman,L (2520) EU-chT 06th Group5 1976 (2)}) 13. exf6 {[%emt 0:05:35]} Rxf6 {[%emt 0:02:57]} 14. Qd2 {[%emt 0:00:27]} Re6+ {[%emt 0:06:38]} (14... Qf8 $17 15. c4 (15. Qxd5+ Be6 $17) 15... Rxf4) 15. Be2 {[%emt 0:01:22]} Bc5 $36 {[%emt 0:00:08][%mdl 2048] And now ...Be3 would win. Black has good play.} 16. Nd4 {[%emt 0:01:41]} Re7 {[%emt 0:06:57]} 17. O-O {[%emt 0:02:50]} Bf5 {[%emt 0:03:30]} 18. Kh1 {[%emt 0:02:19]} Bxd4 {[%emt 0:03:14]} (18... Be4 {seems wilder.} 19. Nxc6 bxc6 20. c4 Be3) 19. cxd4 {[%emt 0:00:05]} Qd7 {[%emt 0:00:04]} (19... Qd6 $5) 20. Rfe1 {[%emt 0:05:02]} (20. Kg1 $5) 20... Rae8 {[%emt 0:01:13]} 21. c4 {[%emt 0:02:30] [#]} ({White should play} 21. Kg1 $15) 21... Na5 $1 $17 {[%emt 0:03:13][%mdl 64] White must now prevent ...Nb3. Deflection. Black has more active pieces.} 22. Qxa5 {[%emt 0:05:40]} (22. Bh5 $17 {is a better defense.} Rxe1+ 23. Rxe1 Rxe1+ 24. Qxe1 Nxc4 25. Bc1) 22... Rxe2 $19 {[%emt 0:00:09]} 23. Qc3 {[%emt 0:02:17] Inhibits R8e3. White is weak on the light squares} (23. Bc3 {nothing else works.}) 23... h6 {[%emt 0:07:16]} 24. c5 {[%emt 0:04:59]} Qb5 {[%emt 0:03:02] Weighted Error Value: White=0.64/Black=0.17 (very precise)} 0-1

[Event "FIDE World Senior-50 CC 2023"]
[Site "Terrasini"]
[Date "2023.10.25"]
[Round "1.2"]
[White "Stefansson, Hannes"]
[Black "Folk, Petr"]
[Result "0-1"]
[ECO "B48"]
[WhiteElo "2529"]
[BlackElo "2109"]
[Annotator "RC"]
[PlyCount "28"]
[EventDate "2023.10.22"]
[EventType "swiss"]
[EventCountry "ITA"]
[SourceTitle "playchess.com"]
[Source "ChessBase"]
[SourceQuality "1"]
[TimeControl "40/5400+30:1800+30"]

1. e4 {[%emt 0:00:06]} c5 {[%emt 0:00:12]} 2. Nf3 {[%emt 0:00:16]} e6 {[%emt 0:00:09]} 3. d4 {[%emt 0:00:17]} cxd4 {[%emt 0:00:06]} 4. Nxd4 {[%emt 0:00:11]} Nc6 {[%emt 0:00:12]} 5. Nc3 {[%emt 0:00:17]} Qc7 {[%emt 0:00:11]} 6. Be3 {[%emt 0:00:37]} a6 {[%emt 0:00:20]} 7. a3 {[%emt 0:00:29]} Nf6 {[%emt 0:00:34]} 8. f4 {[%emt 0:01:07]} Nxd4 {[%emt 0:08:05]} 9. Bxd4 {[%emt 0:03:47]} Qxf4 {[%emt 0:10:20]} 10. g3 {[%emt 0:00:22]} Qg5 {[%emt 0:01:48]} 11. e5 {[%emt 0:03:36]} Nd5 {[%emt 0:08:41]} 12. Ne4 {[%emt 0:00:33]} Qh6 {[%emt 0:01:53]} 13. c4 {[%emt 0:03:35]} Ne3 {[%emt 0:05:32]} 14. Qf3 {[%emt 0:00:22]} Nc2+ {[%emt 0:01:33]} 0-1

[Event "FIDE World Senior-50 CC 2023"]
[Site "Terrasini"]
[Date "2023.10.25"]
[Round "1.3"]
[White "Becker, Rogerio Sperb"]
[Black "Dlugy, Maxim"]
[Result "0-1"]
[ECO "A34"]
[WhiteElo "2102"]
[BlackElo "2520"]
[Annotator "RC"]
[PlyCount "118"]
[EventDate "2023.10.22"]
[EventType "swiss"]
[EventCountry "ITA"]
[SourceTitle "playchess.com"]
[Source "ChessBase"]
[SourceQuality "1"]
[TimeControl "40/5400+30:1800+30"]

1. c4 {[%emt 0:01:06]} c5 {[%emt 0:00:13]} 2. Nf3 {[%emt 0:00:09]} Nf6 {[%emt 0:00:06]} 3. g3 {[%emt 0:00:24]} d5 {[%emt 0:00:10]} 4. cxd5 {[%emt 0:00:17]} Nxd5 {[%emt 0:00:03]} 5. Bg2 {[%emt 0:00:23]} Nc6 {[%emt 0:00:04]} 6. O-O {[%emt 0:01:22]} e5 {[%emt 0:02:45]} 7. Nc3 {[%emt 0:01:53]} Nc7 {[%emt 0:01:36]} 8. a3 {[%emt 0:01:17]} f6 {[%emt 0:04:36]} 9. d3 {[%emt 0:04:41]} Be6 {[%emt 0:03:57]} 10. Be3 {[%emt 0:16:44]} Qd7 {[%emt 0:02:58]} 11. Nd2 {[%emt 0:11:14]} Be7 {[%emt 0:05:55]} 12. f4 {[%emt 0:12:24]} exf4 {[%emt 0:03:00]} 13. Bxf4 {[%emt 0:00:33]} Nd5 {[%emt 0:00:21]} 14. Nxd5 {[%emt 0:07:06]} Bxd5 {[%emt 0:00:39]} 15. Bxd5 {[%emt 0:00:39]} Qxd5 {[%emt 0:00:04]} 16. Qb3 {[%emt 0:00:43]} Qxb3 {[%emt 0:03:38]} 17. Nxb3 {[%emt 0:00:24]} b6 {[%emt 0:00:42]} 18. Kf2 {[%emt 0:05:32]} f5 {[%emt 0:01:49]} 19. Bd2 {[%emt 0:00:58]} O-O {[%emt 0:01:22]} 20. a4 {[%emt 0:03:26]} Ne5 {[%emt 0:02:13]} 21. h3 {[%emt 0:03:58]} c4 {[%emt 0:01:26]} 22. dxc4 {[%emt 0:01:16]} Nxc4 {[%emt 0:00:07]} 23. Bc3 {[%emt 0:00:25]} f4 {[%emt 0:02:08]} 24. g4 {[%emt 0:06:05]} f3 {[%emt 0:02:19]} 25. exf3 {[%emt 0:01:39]} Bh4+ {[%emt 0:00:10]} 26. Ke2 {[%emt 0:02:24]} Rae8+ {[%emt 0:02:56]} 27. Kd3 {[%emt 0:00:18]} Ne3 {[%emt 0:01:56]} 28. Nd4 {[%emt 0:01:02]} Nxf1 {[%emt 0:00:12]} 29. Rxf1 {[%emt 0:00:09]} Bg5 {[%emt 0:02:16]} 30. Kc4 {[%emt 0:02:59]} a6 {[%emt 0:02:23]} 31. Kd5 {[%emt 0:01:31]} Rf6 {[%emt 0:07:50]} 32. Nf5 {[%emt 0:07:09]} Rd8+ {[%emt 0:00:37]} 33. Kc4 {[%emt 0:00:18]} Rc6+ {[%emt 0:00:13]} 34. Kb3 {[%emt 0:00:13]} g6 {[%emt 0:02:26]} 35. Ng3 {[%emt 0:01:31]} Bf6 {[%emt 0:00:32]} 36. Ne4 {[%emt 0:01:03]} Bxc3 {[%emt 0:00:02]} 37. bxc3 {[%emt 0:00:12]} Rf8 {[%emt 0:06:32]} 38. g5 {[%emt 0:00:43]} Rf4 {[%emt 0:01:52]} 39. Nf6+ {[%emt 0:01:54]} Kf7 {[%emt 0:00:04]} 40. Nxh7 {[%emt 0:00:58]} Rfc4 {[%emt 0:00:48]} 41. Rc1 {[%emt 0:30:24]} Rh4 {[%emt 0:30:10]} 42. Nf6 {[%emt 0:00:22]} Rxh3 {[%emt 0:00:03]} 43. Rf1 {[%emt 0:00:41]} Ke6 {[%emt 0:00:10]} 44. Ng4 {[%emt 0:02:33]} Kf5 {[%emt 0:01:20]} 45. Ne3+ {[%emt 0:00:27]} Kxg5 {[%emt 0:00:58]} 46. Nd5 {[%emt 0:00:46]} Rg3 {[%emt 0:05:06]} 47. Kb4 {[%emt 0:00:34]} a5+ {[%emt 0:02:26]} 48. Kb3 {[%emt 0:00:14]} Kh4 {[%emt 0:00:51]} 49. Kc2 {[%emt 0:00:00]} Rg2+ {[%emt 0:00:00]} 50. Kd3 {[%emt 0:00:00]} Kg3 {[%emt 0:00:00]} 51. f4 {[%emt 0:00:00]} Rd6 {[%emt 0:00:00]} 52. c4 {[%emt 0:00:00]} Ra2 {[%emt 0:00:00]} 53. Kd4 {[%emt 0:00:00]} Rxa4 {[%emt 0:00:00]} 54. Ke5 {[%emt 0:00:00]} Rc6 {[%emt 0:00:00]} 55. Ne7 {[%emt 0:00:00]} Raxc4 {[%emt 0:00:00]} 56. Rg1+ {[%emt 0:00:00]} Kf2 {[%emt 0:00:00]} 57. Rxg6 {[%emt 0:00:00]} Rxg6 {[%emt 0:00:00]} 58. Nxg6 {[%emt 0:00:00]} a4 {[%emt 0:00:00]} 59. f5 {[%emt 0:00:00]} a3 {[%emt 0:00:00]} 0-1

[Event "FIDE World Senior-50 CC 2023"]
[Site "Terrasini"]
[Date "2023.10.25"]
[Round "1.4"]
[White "Sturua, Zurab"]
[Black "Gratz, Glen"]
[Result "1-0"]
[ECO "A35"]
[WhiteElo "2514"]
[BlackElo "2100"]
[Annotator "RC"]
[PlyCount "132"]
[EventDate "2023.10.22"]
[EventType "swiss"]
[EventCountry "ITA"]
[SourceTitle "playchess.com"]
[Source "ChessBase"]
[SourceQuality "1"]
[TimeControl "40/5400+30:1800+30"]

1. Nf3 {[%emt 0:00:11]} c5 {[%emt 0:00:16]} 2. c4 {[%emt 0:00:41]} Nc6 {[%emt 0:00:19]} 3. Nc3 {[%emt 0:01:16]} e5 {[%emt 0:00:42]} 4. g3 {[%emt 0:00:21]} d6 {[%emt 0:00:27]} 5. Bg2 {[%emt 0:00:07]} Be7 {[%emt 0:00:37]} 6. O-O {[%emt 0:00:36]} Be6 {[%emt 0:01:05]} 7. d3 {[%emt 0:02:10]} h5 {[%emt 0:01:19]} 8. h4 {[%emt 0:12:45]} Qd7 {[%emt 0:01:16]} 9. Nd5 {[%emt 0:00:10]} Bd8 {[%emt 0:01:15]} 10. Rb1 {[%emt 0:03:30]} f6 {[%emt 0:03:50]} 11. b4 {[%emt 0:13:14]} Bxd5 {[%emt 0:06:01]} 12. cxd5 {[%emt 0:00:16]} Nxb4 {[%emt 0:00:31]} 13. Qb3 {[%emt 0:01:23]} Ne7 {[%emt 0:01:27]} 14. Nd2 {[%emt 0:09:32]} a5 {[%emt 0:04:33]} 15. a3 {[%emt 0:01:46]} a4 {[%emt 0:01:18]} 16. Qb2 {[%emt 0:00:06]} Nbxd5 {[%emt 0:01:25]} 17. Qxb7 {[%emt 0:00:44]} Qxb7 {[%emt 0:05:13]} 18. Rxb7 {[%emt 0:00:06]} Ra6 {[%emt 0:00:38]} 19. Bb2 {[%emt 0:05:03]} Rb6 {[%emt 0:07:18]} 20. Nc4 {[%emt 0:00:19]} Rxb7 {[%emt 0:00:20]} 21. Nxd6+ {[%emt 0:00:06]} Kd7 {[%emt 0:00:28]} 22. Nxb7 {[%emt 0:00:06]} Bb6 {[%emt 0:02:50]} 23. Rc1 {[%emt 0:12:58]} Rb8 {[%emt 0:03:27]} 24. Bxd5 {[%emt 0:03:44]} Nxd5 {[%emt 0:00:09]} 25. Nxc5+ {[%emt 0:00:05]} Bxc5 {[%emt 0:04:04]} 26. Rxc5 {[%emt 0:00:15]} Rxb2 {[%emt 0:12:13]} 27. Rxd5+ {[%emt 0:00:05]} Kc6 {[%emt 0:00:13]} 28. Ra5 {[%emt 0:00:45]} Rxe2 {[%emt 0:00:26]} 29. Rxa4 {[%emt 0:00:12]} Rd2 {[%emt 0:00:30]} 30. Ra7 {[%emt 0:00:28]} g5 {[%emt 0:02:23]} 31. hxg5 {[%emt 0:12:02]} fxg5 {[%emt 0:00:16]} 32. Rh7 {[%emt 0:07:03]} h4 {[%emt 0:02:51]} 33. gxh4 {[%emt 0:00:30]} gxh4 {[%emt 0:00:05]} 34. Rxh4 {[%emt 0:00:38]} Rxd3 {[%emt 0:00:15]} 35. Ra4 {[%emt 0:00:36]} e4 {[%emt 0:04:33]} 36. Rxe4 {[%emt 0:02:29]} Rxa3 {[%emt 0:00:17]} 37. Rd4 {[%emt 0:00:05]} Kc5 {[%emt 0:01:48]} 38. Rd2 {[%emt 0:01:18]} Ra8 {[%emt 0:03:05]} 39. f3 {[%emt 0:00:17]} Rg8+ {[%emt 0:03:53]} 40. Kf2 {[%emt 0:00:16]} Rf8 {[%emt 0:00:27]} 41. Rd1 {[%emt 0:30:18]} Kc4 {[%emt 0:30:52]} 42. Rd7 {[%emt 0:04:56]} Kc3 {[%emt 0:01:18]} 43. Rd6 {[%emt 0:02:52]} Kc4 {[%emt 0:01:31]} 44. Kg3 {[%emt 0:01:59]} Rg8+ {[%emt 0:00:29]} 45. Kf4 {[%emt 0:01:05]} Kc5 {[%emt 0:02:37]} 46. Re6 {[%emt 0:02:11]} Kd4 {[%emt 0:01:36]} 47. Rf6 {[%emt 0:01:01]} Ra8 {[%emt 0:03:47]} 48. Rd6+ {[%emt 0:00:00]} Kc5 {[%emt 0:00:00]} 49. Ke5 {[%emt 0:00:00]} Ra3 {[%emt 0:00:00]} 50. Rf6 {[%emt 0:00:00]} Re3+ {[%emt 0:00:00]} 51. Kf4 {[%emt 0:00:00]} Re8 {[%emt 0:00:00]} 52. Kg5 {[%emt 0:00:00]} Rg8+ {[%emt 0:00:00]} 53. Rg6 {[%emt 0:00:00]} Rf8 {[%emt 0:00:00]} 54. f4 {[%emt 0:00:00]} Kd5 {[%emt 0:00:00]} 55. f5 {[%emt 0:00:00]} Ke5 {[%emt 0:00:00]} 56. Re6+ {[%emt 0:00:00]} Kd5 {[%emt 0:00:00]} 57. Re1 {[%emt 0:00:00]} Rg8+ {[%emt 0:00:00]} 58. Kh6 {[%emt 0:00:00]} Rf8 {[%emt 0:00:00]} 59. Kg6 {[%emt 0:00:00]} Kd6 {[%emt 0:00:00]} 60. f6 {[%emt 0:00:00]} Rg8+ {[%emt 0:00:00]} 61. Kh7 {[%emt 0:00:00]} Rg2 {[%emt 0:00:00]} 62. f7 {[%emt 0:00:00]} Rh2+ {[%emt 0:00:00]} 63. Kg7 {[%emt 0:00:00]} Rg2+ {[%emt 0:00:05]} 64. Kf8 {[%emt 0:00:00]} Kd7 {[%emt 0:00:17]} 65. Rd1+ {[%emt 0:00:00]} Ke6 {[%emt 0:00:14]} 66. Ke8 {[%emt 0:00:00]} Ra2 {[%emt 0:00:32]} 1-0

[Event "FIDE World Senior-50 CC 2023"]
[Site "Terrasini"]
[Date "2023.10.25"]
[Round "1.5"]
[White "Matzat, Andre"]
[Black "Morovic Fernandez, Ivan"]
[Result "0-1"]
[ECO "D02"]
[WhiteElo "2098"]
[BlackElo "2488"]
[Annotator "RC"]
[PlyCount "50"]
[EventDate "2023.10.22"]
[EventType "swiss"]
[EventCountry "ITA"]
[SourceTitle "playchess.com"]
[Source "ChessBase"]
[SourceQuality "1"]
[TimeControl "40/5400+30:1800+30"]

1. d4 {[%emt 0:00:10]} d5 {[%emt 0:00:16]} 2. Nf3 {[%emt 0:00:28]} Nf6 {[%emt 0:00:11]} 3. c3 {[%emt 0:00:12]} e6 {[%emt 0:00:57]} 4. Bf4 {[%emt 0:00:21]} Bd6 {[%emt 0:00:08]} 5. e3 {[%emt 0:00:05]} O-O {[%emt 0:04:02]} 6. Nbd2 {[%emt 0:02:21]} c5 {[%emt 0:03:18]} 7. Bg3 {[%emt 0:01:13]} Qc7 {[%emt 0:04:08]} 8. dxc5 {[%emt 0:00:47]} Qxc5 {[%emt 0:04:33]} 9. Bd3 {[%emt 0:00:09]} Nbd7 {[%emt 0:03:10]} 10. Qe2 {[%emt 0:00:26]} Re8 {[%emt 0:10:32]} 11. e4 {[%emt 0:01:11]} dxe4 {[%emt 0:08:13]} 12. Bxe4 {[%emt 0:01:33]} e5 {[%emt 0:06:46]} 13. O-O {[%emt 0:06:30]} Bf8 {[%emt 0:06:24]} 14. Bc2 {[%emt 0:06:22]} e4 {[%emt 0:05:28]} 15. Bxe4 {[%emt 0:01:31]} Nxe4 {[%emt 0:02:23]} 16. Nxe4 {[%emt 0:00:07]} Qc6 {[%emt 0:00:39]} 17. Rfe1 {[%emt 0:02:11]} f5 {[%emt 0:03:08]} 18. Nfg5 {[%emt 0:06:44]} fxe4 {[%emt 0:02:34]} 19. Nxh7 {[%emt 0:04:20]} Nf6 {[%emt 0:06:36]} 20. Nxf6+ {[%emt 0:01:22]} Qxf6 {[%emt 0:01:10]} 21. Qc4+ {[%emt 0:01:49]} Qf7 {[%emt 0:02:54]} 22. Rxe4 {[%emt 0:01:05]} Be6 {[%emt 0:00:54]} 23. Qe2 {[%emt 0:02:01]} Bxa2 {[%emt 0:01:46]} 24. c4 {[%emt 0:09:12]} Rxe4 {[%emt 0:01:41]} 25. Qxe4 {[%emt 0:02:47]} Bxc4 {[%emt 0:00:33]} 0-1

[Event "FIDE World Senior-50 CC 2023"]
[Site "Terrasini"]
[Date "2023.10.25"]
[Round "1.6"]
[White "Degraeve, Jean-Marc"]
[Black "Nikolaidis, Konstantinos"]
[Result "0-1"]
[ECO "B50"]
[WhiteElo "2479"]
[BlackElo "2096"]
[Annotator "RC"]
[PlyCount "112"]
[EventDate "2023.10.22"]
[EventType "swiss"]
[EventCountry "ITA"]
[SourceTitle "playchess.com"]
[Source "ChessBase"]
[SourceQuality "1"]
[TimeControl "40/5400+30:1800+30"]

1. e4 {[%emt 0:00:03]} c5 {[%emt 0:00:11]} 2. Nf3 {[%emt 0:00:13]} d6 {[%emt 0:00:15]} 3. Bc4 {[%emt 0:00:17]} Nf6 {[%emt 0:01:10]} 4. d3 {[%emt 0:00:06]} e6 {[%emt 0:02:00]} 5. Bb3 {[%emt 0:00:27]} Be7 {[%emt 0:02:20]} 6. O-O {[%emt 1:32:24]} O-O {[%emt 0:01:45]} 7. c3 {[%emt 0:00:00]} d5 {[%emt 0:05:14]} 8. e5 {[%emt 0:00:00]} Nfd7 {[%emt 0:00:13]} 9. d4 {[%emt 0:00:00]} Nc6 {[%emt 0:03:14]} 10. Re1 {[%emt 0:00:00]} b5 {[%emt 0:03:08]} 11. Nbd2 {[%emt 0:00:00]} a5 {[%emt 0:02:42]} 12. a4 {[%emt 0:00:00]} Ba6 {[%emt 0:02:12]} 13. axb5 {[%emt 0:00:00]} Bxb5 {[%emt 0:00:04]} 14. Nf1 {[%emt 0:00:00]} Rb8 {[%emt 0:04:38]} 15. Bc2 {[%emt 0:00:00]} Qb6 {[%emt 0:07:39]} 16. h4 {[%emt 0:00:00]} cxd4 {[%emt 0:03:54]} 17. cxd4 {[%emt 0:00:00]} Rfc8 {[%emt 0:06:23]} 18. Ne3 {[%emt 0:00:00]} Rc7 {[%emt 0:04:02]} 19. Bd2 {[%emt 0:00:00]} Nb4 {[%emt 0:06:52]} 20. Bb1 {[%emt 0:00:00]} Rbc8 {[%emt 0:06:22]} 21. Bc3 {[%emt 0:00:00]} Nf8 {[%emt 0:06:24]} 22. Qd2 {[%emt 0:00:00]} Ra7 {[%emt 0:01:32]} 23. h5 {[%emt 0:00:00]} Qd8 {[%emt 0:02:19]} 24. Ng4 {[%emt 0:00:00]} Nd7 {[%emt 0:01:32]} 25. Nfh2 {[%emt 0:00:00]} Bf8 {[%emt 0:01:41]} 26. Re3 {[%emt 0:00:00]} Nb6 {[%emt 0:01:35]} 27. Rg3 {[%emt 0:00:00]} Kh8 {[%emt 0:01:04]} 28. Nf6 {[%emt 0:00:00]} gxf6 {[%emt 0:05:13]} 29. Bxb4 {[%emt 0:00:00]} Nc4 {[%emt 0:06:20]} 30. Qc2 {[%emt 0:00:00]} f5 {[%emt 0:00:52]} 31. Bc3 {[%emt 0:00:00]} Nxe5 {[%emt 0:04:02]} 32. Qb3 {[%emt 0:00:00]} Bc4 {[%emt 0:00:39]} 33. Qa4 {[%emt 0:00:00]} Nc6 {[%emt 0:01:28]} 34. Nf3 {[%emt 0:00:00]} Be2 {[%emt 0:02:01]} 35. Qc2 {[%emt 0:00:00]} Bxf3 {[%emt 0:01:16]} 36. Rxf3 {[%emt 0:00:00]} Nb4 {[%emt 0:02:30]} 37. Qe2 {[%emt 0:00:00]} Qg5 {[%emt 0:02:33]} 38. Bd2 {[%emt 0:00:00]} Qxh5 {[%emt 0:00:50]} 39. Qb5 {[%emt 0:00:00]} Bd6 {[%emt 0:00:55]} 40. Bc3 {[%emt 0:00:00]} Rg8 {[%emt 0:00:38]} 41. Kf1 {[%emt 0:29:41]} Qh1+ {[%emt 0:06:37]} 42. Ke2 {[%emt 0:00:00]} Nc2 {[%emt 0:11:17]} 43. Qb6 {[%emt 0:00:00]} Rd7 {[%emt 0:02:36]} 44. Bxc2 {[%emt 0:00:00]} Qxa1 {[%emt 0:00:10]} 45. Qc6 {[%emt 0:00:00]} Rdd8 {[%emt 0:00:52]} 46. Qb7 {[%emt 0:00:00]} Qc1 {[%emt 0:01:09]} 47. Bd3 {[%emt 0:00:00]} Rgf8 {[%emt 0:03:35]} 48. Rh3 {[%emt 0:00:00]} Rb8 {[%emt 0:01:43]} 49. Qd7 {[%emt 0:00:00]} Rxb2+ {[%emt 0:00:56]} 50. Bxb2 {[%emt 0:00:00]} Qxb2+ {[%emt 0:00:04]} 51. Kf1 {[%emt 0:00:00]} Qc1+ {[%emt 0:00:48]} 52. Ke2 {[%emt 0:00:00]} Bb4 {[%emt 0:01:55]} 53. Qb5 {[%emt 0:00:00]} Qb2+ {[%emt 0:01:08]} 54. Kf1 {[%emt 0:00:00]} Qa1+ {[%emt 0:00:58]} 55. Ke2 {[%emt 0:00:00]} Qxd4 {[%emt 0:00:16]} 56. Rf3 {[%emt 0:00:00]} Qb2+ {[%emt 0:04:44]} 0-1

[Event "FIDE World Senior-50 CC 2023"]
[Site "Terrasini"]
[Date "2023.10.25"]
[Round "1.7"]
[White "Farrell, Neil"]
[Black "Bischoff, Klaus"]
[Result "0-1"]
[ECO "A42"]
[WhiteElo "2096"]
[BlackElo "2473"]
[Annotator "RC"]
[PlyCount "94"]
[EventDate "2023.10.22"]
[EventType "swiss"]
[EventCountry "ITA"]
[SourceTitle "playchess.com"]
[Source "ChessBase"]
[SourceQuality "1"]
[TimeControl "40/5400+30:1800+30"]

1. d4 {[%emt 0:00:04]} g6 {[%emt 0:00:21]} 2. c4 {[%emt 0:00:29]} Bg7 {[%emt 0:00:17]} 3. Nc3 {[%emt 0:01:44]} d6 {[%emt 0:00:30]} 4. e4 {[%emt 0:02:46]} c6 {[%emt 0:01:28]} 5. Nf3 {[%emt 0:03:44]} a6 {[%emt 0:01:12]} 6. Be3 {[%emt 0:06:43]} b5 {[%emt 0:01:24]} 7. b3 {[%emt 0:19:09]} Nf6 {[%emt 0:07:27]} 8. Bd3 {[%emt 0:00:48]} Nbd7 {[%emt 0:04:45]} 9. O-O {[%emt 0:01:14]} O-O {[%emt 0:02:30]} 10. h3 {[%emt 0:08:59]} e5 {[%emt 0:06:29]} 11. d5 {[%emt 0:21:54]} cxd5 {[%emt 0:04:33]} 12. cxd5 {[%emt 0:00:43]} Nh5 {[%emt 0:01:04]} 13. a4 {[%emt 0:09:56]} b4 {[%emt 0:03:03]} 14. Na2 {[%emt 0:04:38]} a5 {[%emt 0:01:22]} 15. Bb5 {[%emt 0:01:59]} Nf4 {[%emt 0:01:09]} 16. Rc1 {[%emt 0:05:33]} f5 {[%emt 0:00:59]} 17. exf5 {[%emt 0:01:35]} gxf5 {[%emt 0:00:27]} 18. Rc4 {[%emt 0:01:23]} Nf6 {[%emt 0:03:35]} 19. Bxf4 {[%emt 0:01:55]} exf4 {[%emt 0:00:03]} 20. Nc1 {[%emt 0:00:16]} Ne4 {[%emt 0:00:46]} 21. Ne2 {[%emt 0:01:15]} Ra7 {[%emt 0:05:20]} 22. Ned4 {[%emt 0:00:35]} Bxd4 {[%emt 0:03:24]} 23. Nxd4 {[%emt 0:00:28]} Rg7 {[%emt 0:00:35]} 24. Rxc8 {[%emt 0:01:43]} Qxc8 {[%emt 0:00:09]} 25. Ne6 {[%emt 0:00:15]} Qc3 {[%emt 0:00:43]} 26. Nxg7 {[%emt 0:02:08]} Qxg7 {[%emt 0:01:00]} 27. Kh2 {[%emt 0:01:12]} Qe5 {[%emt 0:01:08]} 28. f3 {[%emt 0:00:23]} Nc3 {[%emt 0:00:20]} 29. Qd3 {[%emt 0:00:44]} Kh8 {[%emt 0:01:40]} 30. Qd2 {[%emt 0:01:15]} Qe3 {[%emt 0:00:28]} 31. Qd3 {[%emt 0:00:00]} Qe5 {[%emt 0:04:12]} 32. Rf2 {[%emt 0:00:00]} Kg7 {[%emt 0:01:43]} 33. Bc6 {[%emt 0:00:22]} Qe3 {[%emt 0:00:19]} 34. Rd2 {[%emt 0:00:21]} Kf6 {[%emt 0:00:34]} 35. Qd4+ {[%emt 0:00:17]} Qxd4 {[%emt 0:00:17]} 36. Rxd4 {[%emt 0:00:01]} Ke5 {[%emt 0:00:09]} 37. Rd2 {[%emt 0:00:38]} Rf7 {[%emt 0:00:25]} 38. Kg1 {[%emt 0:00:25]} Re7 {[%emt 0:00:18]} 39. Kf2 {[%emt 0:00:34]} Kf6 {[%emt 0:00:06]} 40. Kf1 {[%emt 0:00:57]} Re3 {[%emt 0:00:58]} 41. Kf2 {[%emt 0:05:48]} Re5 {[%emt 0:01:20]} 42. Bb7 {[%emt 0:02:27]} Kg5 {[%emt 0:02:33]} 43. Bc6 {[%emt 0:01:07]} h5 {[%emt 0:00:08]} 44. Kf1 {[%emt 0:08:01]} h4 {[%emt 0:00:14]} 45. Bb7 {[%emt 0:00:16]} Re3 {[%emt 0:00:29]} 46. Ba6 {[%emt 0:02:06]} Nb1 {[%emt 0:01:10]} 47. Rb2 {[%emt 0:00:33]} Rxb3 {[%emt 0:00:14]} 0-1